bitfinex/quotes_ETHUSD_20241105
["timestamp","ask_amount","ask_price","bid_price","bid_amount"]
[1730770405556,0.8794984,2385.7,2385.3,4.19222]
[1730770406359,0.8794984,2385.7,2385.4,4.47431833]
[1730770406559,0.8794984,2385.7,2385.4,4.19212]
[1730770406767,0.8794984,2385.7,2385.5,4.19196]
[1730770406975,0.8794984,2385.7,2385.6,4.19181]
[1730770406976,0.1177984,2385.7,2385.6,4.19181]
[1730770407185,0.1177984,2385.7,2385.6,4.47399298]
[1730770407382,0.8328,2386.0,2385.8,4.19136]
[1730770407575,0.8328,2386.0,2385.8,8.38272]
[1730770407885,0.8328,2386.0,2385.8,4.19136]
[1730770409458,0.8286,2386.2,2385.8,4.19136]
[1730770409659,0.55,2386.1,2385.8,4.19136]
[1730770409875,5.868615,2386.3,2386.1,4.19085]
[1730770409876,1.678025,2386.3,2386.1,4.19085]
[1730770410170,1.678025,2386.3,2385.9,4.19114]
[1730770410467,4.19103,2386.1,2385.6,0.45197806]
[1730770410620,4.98948,2386.2,2385.7,4.47411793]
[1730770410820,4.98948,2386.2,2385.8,4.47384793]
[1730770410821,0.7987,2386.2,2385.8,4.47384793]
[1730770411117,0.55,2386.1,2385.8,4.19134]
[1730770411342,0.55,2386.1,2385.7,8.38316]
[1730770411549,0.55,2386.1,2385.8,0.28252868]
[1730770411767,0.55,2386.1,2385.9,4.19128]
[1730770412063,0.55,2386.1,2385.7,4.19147]
[1730770412264,0.55,2386.1,2385.8,4.47398222]
[1730770412577,0.55,2386.1,2385.8,4.19143]
[1730770412722,0.55,2386.1,2385.9,4.47382517]
[1730770413022,0.55,2386.1,2385.8,4.19141]
[1730770413223,0.55,2386.1,2385.9,0.28256081]
[1730770413457,0.55,2386.1,2386.0,0.28258561]
[1730770414054,0.55,2386.1,2385.8,4.19141]
[1730770414255,0.55,2386.1,2385.9,0.28260393]
[1730770414423,0.7987,2386.2,2386.0,0.28260393]
[1730770414624,0.7987,2386.2,2385.9,4.19128]
[1730770414862,0.7987,2386.2,2386.0,0.28262403]
[1730770415062,0.7987,2386.2,2385.8,4.19138]
[1730770415063,0.7987,2386.2,2385.8,4.19144]
[1730770415230,0.7987,2386.2,2385.9,0.28263263]
[1730770415422,0.7987,2386.2,2386.0,0.28263263]
[1730770415624,0.7987,2386.2,2385.8,4.19144]
[1730770415936,0.7987,2386.2,2385.9,0.28276209]
[1730770416135,0.7987,2386.2,2386.0,0.28276209]
[1730770416443,1.3487,2386.2,2386.1,0.28276209]
[1730770416649,1.677962,2386.4,2386.3,4.19058]
[1730770416852,0.787,2386.7,2386.3,4.92616218]
[1730770417021,4.19006,2386.6,2386.4,0.28293195]
[1730770417223,4.19006,2386.6,2386.1,4.19083]
[1730770417420,4.19006,2386.6,2386.2,0.73566045]
[1730770417664,4.19006,2386.6,2386.3,0.2829413]
[1730770417962,4.74017,2386.6,2386.4,0.2829413]
[1730770418262,5.7066327,2386.6,2386.1,8.38168]
[1730770418469,0.11461815,2386.5,2386.2,0.73571723]
[1730770418624,0.11461815,2386.5,2386.3,0.73571723]
[1730770418961,0.11461815,2386.5,2386.4,0.28296313]
[1730770419461,0.11461815,2386.5,2386.1,4.19083]
[1730770419462,0.11461815,2386.5,2386.2,4.19074]
[1730770419770,0.11461815,2386.5,2386.3,0.73558651]
[1730770419918,0.11461815,2386.5,2386.4,0.28291474]
[1730770420379,0.11461815,2386.5,2386.4,4.47332474]
[1730770420701,0.85846531,2387.1,2386.4,1.53389291]
[1730770420880,0.11128498,2387.0,2386.9,4.18936]
[1730770421089,1.81971475,2387.2,2386.9,0.28291474]
[1730770421256,0.11128498,2387.1,2386.8,4.18958]
[1730770421452,0.11128498,2387.1,2386.9,0.28272515]
[1730770421657,0.11128498,2387.1,2386.7,4.18986]
[1730770421859,0.11128498,2387.1,2387.0,4.18935]
[1730770422096,4.18901,2387.2,2387.0,0.73512891]
[1730770422386,4.18901,2387.2,2386.8,4.18962]
[1730770422387,0.10794138,2387.1,2386.8,4.18962]
[1730770422593,0.10794138,2387.1,2386.9,0.28256077]
[1730770422794,0.10794138,2387.1,2386.7,4.18979]
[1730770422961,0.10794138,2387.1,2386.9,4.18953]
[1730770423165,0.65794138,2387.1,2387.0,0.28258375]
[1730770423357,0.65794138,2387.1,2386.9,4.18953]
[1730770423558,0.65794138,2387.1,2386.7,4.18976]
[1730770423816,0.65794138,2387.1,2386.8,4.92398825]
[1730770423975,0.65794138,2387.1,2386.9,4.47194633]
[1730770424261,0.65794138,2387.1,2386.9,4.18953]
[1730770424462,0.65794138,2387.1,2386.7,8.37954]
[1730770424660,0.10794138,2387.1,2386.9,4.18944]
[1730770424901,3.0,2387.3,2387.0,0.28232307]
[1730770425199,0.65794138,2387.2,2386.9,4.18944]
[1730770425695,0.65794138,2387.2,2386.7,0.45149628]
[1730770425883,0.65794138,2387.2,2386.9,4.18953]
[1730770426095,0.10794138,2387.2,2387.1,8.07610415]
[1730770426258,2.53550231,2387.8,2387.1,4.47126161]
[1730770426460,4.1883,2387.6,2387.1,4.18908]
[1730770426692,5.04676531,2387.6,2387.1,4.18908]
[1730770426898,0.10794138,2387.5,2387.1,4.18908]
[1730770427661,0.10794138,2387.5,2387.1,8.37816]
[1730770427856,0.10794138,2387.5,2387.3,4.18881]
[1730770428099,1.15242003,2387.7,2387.3,4.18873]
[1730770428261,0.65870328,2387.6,2387.3,4.18873]
[1730770429401,0.65870328,2387.6,2387.3,4.18872]
[1730770429789,0.65870328,2387.6,2387.1,4.18904]
[1730770429994,0.65870328,2387.6,2387.3,4.18875]
[1730770430776,0.65870328,2387.6,2387.3,4.1887]
[1730770431389,0.65870328,2387.6,2387.4,4.1886]
[1730770431887,1.42630991,2387.6,2386.8,0.8278]
[1730770432212,0.7607,2387.4,2387.0,4.18923]
[1730770432574,0.7607,2387.4,2386.9,4.97559]
[1730770432575,0.10950144,2387.3,2386.9,4.97559]
[1730770432775,0.10950144,2387.3,2387.0,4.18935]
[1730770432991,0.10950144,2387.3,2386.6,4.19004]
[1730770432992,0.7607,2387.4,2386.6,0.7861]
[1730770433165,4.2984489,2387.2,2386.7,4.18975]
[1730770433370,0.55,2387.2,2386.7,4.18975]
[1730770433589,0.1094289,2387.1,2386.9,4.18937]
[1730770433814,0.1094289,2387.1,2386.8,8.37919]
[1730770434168,0.1094289,2387.1,2386.8,8.37918]
[1730770434593,0.1094289,2387.1,2386.8,4.18957]
[1730770434812,0.59425779,2387.1,2386.3,0.7539]
[1730770434976,0.59425779,2387.1,2386.4,4.19032]
[1730770434977,4.18963,2386.9,2386.4,4.19032]
[1730770435524,0.10919312,2386.8,2386.4,4.19032]
[1730770435879,0.55,2386.7,2386.2,4.19064]
[1730770436087,0.55,2386.7,2386.1,4.19093]
[1730770436088,0.777,2386.5,2386.1,4.19093]
[1730770436319,0.10898451,2386.4,2386.1,4.19093]
[1730770436878,4.29945451,2386.4,2385.9,4.19118]
[1730770437083,0.61662996,2386.4,2386.0,4.47292978]
[1730770437283,0.10898451,2386.4,2386.0,4.19108]
[1730770438410,4.74059,2386.3,2385.8,4.98655]
[1730770438596,4.19076,2386.2,2385.9,0.28197524]
[1730770438799,0.7701,2386.1,2385.8,0.2819797]
[1730770439000,0.7701,2386.1,2385.7,4.19149]
[1730770439293,0.10874863,2386.0,2385.7,4.19149]
[1730770439712,4.29986863,2386.0,2385.5,4.19188]
[1730770439915,0.55,2385.9,2385.6,4.19172]
[1730770440423,0.55,2385.9,2385.6,4.1918]
[1730770440732,0.1082858,2385.8,2385.6,4.1918]
[1730770441019,0.1082858,2385.8,2385.4,4.72711041]
[1730770441221,0.1082858,2385.8,2385.6,4.19171]
[1730770441628,0.1082858,2385.8,2385.7,4.19164]
[1730770441986,4.19019,2386.6,2386.1,4.19083]
[1730770442183,0.8156,2386.6,2386.1,0.08381063]
[1730770442400,0.8156,2386.9,2386.4,4.19038]
[1730770442633,0.8156,2386.9,2386.5,4.19014]
[1730770442994,0.8156,2386.9,2386.4,4.19038]
[1730770443195,5.00515,2386.9,2386.4,4.19031]
[1730770443409,0.8156,2386.9,2386.5,4.19018]
[1730770443841,4.9999,2387.2,2386.7,4.18978]
[1730770444031,1.00472253,2387.1,2386.7,4.18978]
[1730770444204,9.38322253,2387.1,2386.6,4.18994]
[1730770444405,5.19390253,2387.1,2386.6,4.18994]
[1730770444930,1.00472253,2387.1,2386.7,4.18977]
[1730770445144,4.7393,2387.1,2386.6,4.18994]
[1730770445315,4.18938,2387.0,2386.5,4.19023]
[1730770445516,4.18938,2387.0,2386.6,4.19004]
[1730770445718,4.73919,2387.1,2386.6,4.19004]
[1730770446111,4.18936,2387.0,2386.6,4.19004]
[1730770446321,0.801,2386.6,2386.0,4.19099]
[1730770446612,0.55,2386.5,2386.1,0.28239132]
[1730770446816,0.55,2386.3,2386.0,0.28239132]
[1730770447027,4.19078,2386.2,2385.9,0.28243546]
[1730770447241,0.55,2386.0,2385.8,0.28239637]
[1730770447450,4.74129,2385.9,2385.4,4.72776617]
[1730770447647,0.10470765,2385.8,2385.6,4.19181]
[1730770447949,0.10470765,2385.8,2385.7,0.28240551]
[1730770448422,0.10470765,2385.8,2385.6,0.28240551]
[1730770448615,0.21205003,2385.8,2385.5,0.28240551]
[1730770448932,0.21205003,2385.8,2385.6,0.28240551]
[1730770449247,0.21205003,2385.8,2385.5,0.28240551]
[1730770449403,2.74959903,2385.8,2385.6,0.28240551]
[1730770449603,9.45467503,2385.8,2385.3,4.19233]
[1730770449803,5.26305503,2385.8,2385.4,0.28226981]
[1730770450016,9.45463503,2385.8,2385.4,0.28226981]
[1730770450213,9.45463503,2385.8,2385.0,3.88692415]
[1730770450214,4.19182,2385.6,2385.0,4.9481]
[1730770450415,4.19182,2385.6,2385.1,4.47483493]
[1730770450644,0.10669796,2385.5,2385.1,4.19267]
[1730770452857,0.10669796,2385.5,2385.2,4.19245]
[1730770453203,4.74182,2385.6,2385.1,4.19267]
[1730770453407,0.1064982,2385.4,2385.1,4.19267]
[1730770453644,5.38929726,2385.6,2385.1,8.38527]
[1730770453945,5.38929726,2385.6,2385.1,4.19259]
[1730770454152,0.10568999,2385.5,2385.2,4.19252]
[1730770455108,0.10568999,2385.5,2385.1,8.38519]
[1730770455546,0.10568999,2385.5,2385.1,4.19259]
[1730770455751,0.10568999,2385.5,2385.2,4.1925]
[1730770455955,0.10568999,2385.5,2385.1,4.19259]
[1730770456718,4.29777999,2385.5,2385.0,4.19285]
[1730770456947,0.55,2385.2,2384.5,0.8136]
[1730770457170,5.01417,2384.8,2384.5,0.28664199]
[1730770457309,0.8209,2384.8,2384.5,0.005]
[1730770457510,0.8209,2384.8,2384.5,4.19866]
[1730770457734,0.10570815,2384.7,2384.5,8.39228]
[1730770457976,0.8209,2384.8,2384.5,8.39228]
[1730770458178,0.8209,2385.1,2384.8,4.1932]
[1730770458375,0.8209,2385.1,2384.7,4.19338]
[1730770459136,0.55,2385.2,2384.8,4.1932]
[1730770459443,0.8209,2385.3,2384.9,4.19287]
[1730770459652,4.19339,2384.7,2384.5,0.005]
[1730770459880,4.74357,2384.6,2384.5,0.005]
[1730770460175,4.19289,2385.0,2384.5,0.005]
[1730770460176,0.55,2384.8,2384.5,0.005]
[1730770460381,0.55,2384.6,2384.5,0.005]
[1730770460581,4.19357,2384.6,2384.5,0.005]
[1730770460736,0.55,2384.6,2384.5,0.005]
[1730770461137,4.74357,2384.6,2384.5,0.005]
[1730770461439,4.7432,2384.9,2384.5,0.005]
[1730770461637,5.71238,2384.9,2384.5,0.005]
[1730770462174,5.71237,2384.9,2384.5,0.005]
[1730770462343,4.19324,2384.8,2384.5,0.005]
[1730770462539,5.71237,2384.9,2384.5,0.005]
[1730770462753,1.51918,2384.9,2384.5,0.005]
[1730770462951,4.74314,2384.9,2384.5,0.005]
[1730770463160,0.55,2384.7,2384.5,0.005]
[1730770463676,0.65498129,2384.6,2384.5,0.005]
[1730770463973,0.10498129,2384.6,2384.5,4.95935]
[1730770464181,0.10498129,2384.6,2384.5,0.005]
[1730770464387,4.96694,2384.8,2384.5,0.005]
[1730770464585,0.10070139,2384.6,2384.5,0.005]
[1730770464736,0.7737,2384.8,2384.5,4.19875]
[1730770465045,0.10070139,2384.7,2384.5,0.005]
[1730770465469,0.1007378,2384.6,2384.5,0.005]
[1730770465653,0.1007378,2384.6,2384.5,4.28262254]
[1730770465855,0.7592,2385.1,2384.6,4.19343]
[1730770466069,0.7592,2385.1,2384.8,4.1932]
[1730770466239,0.1007378,2385.0,2384.8,4.1932]
[1730770466446,0.1007378,2385.0,2384.7,4.19338]
[1730770466640,0.1007378,2385.0,2384.9,4.19304]
[1730770466842,0.7592,2385.3,2384.6,4.19344]
[1730770467067,4.56853,2385.2,2384.7,4.19338]
[1730770467273,4.6692678,2385.2,2384.7,4.19338]
[1730770467941,0.55,2384.9,2384.5,0.005]
[1730770468188,4.19357,2384.6,2384.5,0.005]
[1730770468347,5.922127,2384.6,2384.5,0.005]
[1730770468677,6.0228648,2384.6,2384.5,0.005]
[1730770471989,1.8292948,2384.6,2384.5,0.005]
[1730770472193,1.4099378,2384.6,2384.5,0.005]
[1730770473045,0.6507378,2384.6,2384.5,0.005]
[1730770473691,4.8443078,2384.6,2384.5,0.005]
[1730770474461,0.6507378,2384.6,2384.5,0.005]
[1730770474691,4.8443078,2384.6,2384.5,0.005]
[1730770474854,5.82932158,2384.6,2384.5,0.005]
[1730770475295,1.63575158,2384.6,2384.5,0.005]
[1730770475583,0.6507378,2384.6,2384.5,0.005]
[1730770475812,8.6623078,2384.6,2384.5,0.005]
[1730770477063,8.6623078,2384.6,2384.5,6.567e-05]
[1730770478150,0.7563,2383.8,2383.7,0.0644478]
[1730770478356,8.50128,2383.8,2383.7,0.0644478]
[1730770478557,9.87157617,2383.8,2383.7,0.0644478]
[1730770479274,9.93567617,2383.8,2383.7,0.0644478]
[1730770479657,0.55,2383.4,2383.0,4.9411478]
[1730770479898,0.55,2383.4,2383.1,0.28229722]
[1730770480215,0.09955375,2383.3,2383.2,0.28227932]
[1730770480555,0.55,2383.5,2383.2,0.73370192]
[1730770480755,0.55,2383.5,2383.3,0.28227932]
[1730770480976,8.01549,2383.8,2383.4,0.28212087]
[1730770481155,0.55,2383.7,2383.5,0.28202409]
[1730770481364,0.55,2383.7,2383.3,4.19575]
[1730770481570,0.55,2383.7,2383.2,4.19591]
[1730770481571,0.55,2383.7,2383.4,0.28202306]
[1730770481793,0.55,2383.7,2383.5,0.28202306]
[1730770482106,0.7555,2384.1,2383.4,0.824]
[1730770482259,1.28769796,2384.8,2383.7,4.19507]
[1730770482260,4.94953,2384.4,2383.7,4.19507]
[1730770482461,4.19421,2384.3,2383.8,0.28196396]
[1730770482687,4.19428,2384.2,2383.9,0.28197017]
[1730770482998,4.19422,2384.3,2383.8,4.19489]
[1730770483208,4.19422,2384.3,2383.9,0.28195606]
[1730770483359,4.19429,2384.2,2384.0,0.28195606]
[1730770483697,4.19429,2384.2,2383.9,0.45124655]
[1730770483853,0.55,2384.2,2384.0,0.28203321]
[1730770484057,0.55,2384.3,2384.1,0.28202299]
[1730770484256,4.74421,2384.3,2383.8,0.8001]
[1730770484495,8.93844,2384.3,2383.9,0.73352081]
[1730770484705,4.74421,2384.3,2384.0,0.28211837]
[1730770484859,4.519359,2384.3,2384.1,0.28210369]
[1730770485063,0.55,2383.5,2383.4,0.45141606]
[1730770485268,0.55,2383.5,2383.4,0.73355972]
[1730770485972,0.55,2383.6,2383.4,0.73355972]
[1730770486172,0.55,2383.6,2383.5,0.28214366]
[1730770486685,4.74533,2383.6,2383.5,0.28214366]
[1730770486992,0.55,2383.6,2383.5,0.28214366]
[1730770487196,5.297866,2383.6,2383.5,0.28214366]
[1730770487403,1.102536,2383.6,2383.5,0.28214366]
[1730770487608,5.297866,2383.6,2383.5,0.28214366]
[1730770487903,4.74533,2383.6,2383.5,0.28214366]
[1730770488762,0.55,2383.6,2383.5,0.28214366]
[1730770489504,4.74533,2383.6,2383.5,0.28214366]
[1730770490408,4.74533,2383.6,2383.1,4.19618]
[1730770490561,0.55,2383.4,2383.2,0.73383539]
[1730770490766,4.74584,2383.4,2383.3,0.28223936]
[1730770490964,0.55,2383.4,2383.3,0.28223936]
[1730770491460,4.74568,2383.4,2383.3,0.28221153]
[1730770491665,6.0670078,2383.4,2383.3,0.28221153]
[1730770492064,6.0670078,2383.4,2382.9,4.19645]
[1730770492399,4.74621,2383.1,2383.0,0.73371595]
[1730770492609,0.55,2383.1,2383.0,0.73371595]
[1730770492903,4.74621,2383.1,2383.0,0.28220718]
[1730770493062,5.5171178,2383.4,2382.9,0.45150645]
[1730770493264,0.55,2383.2,2383.0,0.73360556]
[1730770493457,0.55,2383.2,2383.1,0.28218194]
[1730770493694,0.55,2383.3,2383.1,0.28218194]
[1730770493914,0.55,2383.3,2383.2,0.28211851]
[1730770494261,0.55,2383.5,2383.2,0.28211851]
[1730770494464,3.55,2383.5,2383.3,0.28214355]
[1730770494773,3.55,2383.5,2383.4,0.28214355]
[1730770495202,3.0,2383.5,2383.4,0.28214355]
[1730770496434,3.0,2383.5,2383.1,4.19613]
[1730770496591,3.0,2383.5,2383.4,0.28230411]
[1730770497224,3.55,2383.5,2383.4,0.28230411]
[1730770497726,8.520044,2383.5,2383.4,0.28230411]
[1730770497906,4.19568,2383.4,2383.1,0.45196372]
[1730770498103,0.55,2383.3,2383.2,0.28248411]
[1730770498910,0.55,2383.3,2382.9,4.19655]
[1730770499112,0.55,2383.3,2383.0,4.93111246]
[1730770499436,4.74588,2383.3,2383.1,0.73475246]
[1730770499651,2.39277297,2383.3,2382.7,0.0046]
[1730770499803,0.55,2382.9,2382.8,0.73496957]
[1730770500132,4.74656,2382.9,2382.8,0.73498428]
[1730770500613,8.52626,2382.9,2382.8,0.28268123]
[1730770500809,8.52626,2382.9,2382.7,0.0046]
[1730770500810,9.798707,2382.8,2382.7,0.0046]
[1730770500996,0.55,2383.0,2382.7,0.0046]
[1730770501199,4.74652,2383.0,2382.7,0.0046]
[1730770501528,0.55,2382.8,2382.7,0.0046]
[1730770501832,0.804,2383.1,2382.7,0.0046]
[1730770501833,0.55,2382.9,2382.7,0.45684285]
[1730770502133,0.55,2383.0,2382.7,4.20151]
[1730770502349,0.55,2383.0,2382.8,0.45234915]
[1730770502496,0.55,2383.0,2382.7,0.0046]
[1730770502707,4.19649,2383.0,2382.8,0.45229795]
[1730770502912,0.55,2382.9,2382.7,0.0046]
[1730770503142,4.19615,2383.2,2382.8,0.45227675]
[1730770503312,0.55,2383.1,2382.9,0.45227675]
[1730770503527,0.55,2383.1,2382.7,4.20143]
[1730770503726,0.55,2383.1,2382.8,0.45245207]
[1730770503929,0.55,2383.1,2382.9,0.45245207]
[1730770504165,0.55,2383.1,2382.7,4.20143]
[1730770504451,0.55,2382.9,2382.8,0.45267015]
[1730770504656,4.74632,2383.1,2382.7,0.0046]
[1730770504953,4.74632,2383.1,2382.8,0.45267923]
[1730770505124,8.94264,2383.1,2382.7,0.0046]
[1730770505325,5.640584,2383.1,2382.8,0.45293108]
[1730770505660,5.640584,2383.1,2382.7,0.0046]
[1730770506166,5.640584,2383.1,2382.8,4.19673]
[1730770506167,0.55,2383.1,2382.8,4.19673]
[1730770506480,4.196,2383.3,2382.8,4.19673]
[1730770506481,5.05372531,2383.7,2383.2,4.19591]
[1730770506658,4.19533,2383.6,2383.1,4.19619]
[1730770506820,4.19533,2383.6,2383.2,0.45298519]
[1730770507016,0.85846531,2383.7,2383.3,4.19577]
[1730770507959,3.85846531,2383.7,2383.3,4.19577]
[1730770508462,0.55,2383.6,2383.2,4.19603]
[1730770508627,0.64801411,2383.6,2383.3,4.64897418]
[1730770508827,0.64801411,2383.6,2383.3,4.19577]
[1730770509524,0.64801411,2383.6,2383.4,4.19559]
[1730770510263,0.09801411,2383.6,2383.5,4.19551]
[1730770510437,0.09801411,2383.6,2383.5,4.97661]
[1730770510638,0.55,2383.9,2383.6,4.19532]
[1730770510856,0.85846531,2384.2,2383.6,4.19522]
[1730770511029,0.85846531,2384.2,2383.5,0.7811]
[1730770511030,0.85846531,2384.2,2383.8,4.1949]
[1730770511230,0.85846531,2384.2,2383.7,4.195]
[1730770511231,5.9397527,2384.2,2383.7,4.195]
[1730770511673,1.7453727,2384.2,2383.8,4.19497]
[1730770511968,0.85846531,2384.2,2384.0,5.02774]
[1730770512267,0.85846531,2384.2,2384.1,4.19445]
[1730770512831,0.85846531,2384.2,2384.1,0.28309485]
[1730770513131,0.85846531,2384.2,2383.9,4.64767101]
[1730770513470,4.74446,2384.1,2383.5,4.96867]
[1730770513763,4.95907633,2384.1,2383.6,4.93140861]
[1730770514070,0.55,2383.9,2383.7,0.2831329]
[1730770514268,0.55,2383.9,2383.5,9.16407]
[1730770514490,0.55,2383.9,2383.6,0.28319253]
[1730770514636,1.46538163,2383.9,2383.7,0.28319253]
[1730770514835,1.46538163,2383.9,2383.5,9.16402]
[1730770515070,1.46538163,2383.9,2383.6,0.28319269]
[1730770515275,1.46538163,2383.9,2383.7,0.28319269]
[1730770515473,1.46538163,2383.9,2383.5,4.6484841]
[1730770515633,1.46538163,2383.9,2383.6,4.47845784]
[1730770515976,1.46538163,2383.9,2383.4,4.19568]
[1730770516133,0.56601116,2383.8,2383.5,0.28318944]
[1730770516328,0.56601116,2383.8,2383.6,4.19531]
[1730770516559,0.85846531,2384.2,2383.9,4.19465]
[1730770516832,0.85846531,2384.2,2383.8,4.19498]
[1730770517151,0.85846531,2384.2,2383.9,0.28316102]
[1730770517359,0.85846531,2384.2,2383.8,4.19498]
[1730770517561,0.85846531,2384.2,2383.6,0.8018]
[1730770517768,0.85846531,2384.2,2383.8,4.19486]
[1730770517972,0.85846531,2384.2,2383.9,4.47781609]
[1730770518280,0.85846531,2384.2,2384.0,4.19451]
[1730770518655,0.85846531,2384.2,2384.1,4.98545]
[1730770519475,0.55,2384.4,2384.1,4.98545]
[1730770519677,0.55,2384.4,2384.1,0.791]
[1730770519678,1.91284253,2384.4,2384.1,0.791]
[1730770519837,1.91284253,2384.4,2384.0,4.19462]
[1730770520589,0.85846531,2384.9,2384.1,8.46218925]
[1730770520764,0.85846531,2385.2,2385.0,4.19287]
[1730770520972,4.19252,2385.2,2384.8,0.7961]
[1730770521187,0.419252,2385.1,2384.7,4.19324]
[1730770521654,0.419252,2385.1,2384.5,0.7961]
[1730770521857,5.05073531,2385.4,2384.7,4.19338]
[1730770522088,4.19254,2385.2,2384.7,4.19338]
[1730770522392,5.05073531,2385.4,2384.8,4.19308]
[1730770522597,5.05073531,2385.4,2384.6,4.19346]
[1730770522598,4.74285,2385.1,2384.6,4.19346]
[1730770522758,0.55,2384.9,2384.6,4.19346]
[1730770523094,1.324285,2384.9,2384.6,4.19346]
[1730770523456,1.324285,2384.9,2384.5,0.7961]
[1730770523656,0.09876121,2384.8,2384.5,4.98983]
[1730770524356,1.3662,2384.7,2384.2,4.96234]
[1730770524757,0.55,2384.5,2384.2,4.19414]
[1730770525332,0.09876121,2384.4,2384.2,4.19414]
[1730770525485,0.09876121,2384.4,2384.3,4.1941]
[1730770525677,0.55,2384.6,2384.3,4.1941]
[1730770525876,0.43662,2384.5,2384.2,4.19414]
[1730770526077,0.53538121,2384.5,2384.0,4.99943]
[1730770526277,0.53538121,2384.5,2384.1,4.19444]
[1730770526528,0.53538121,2384.5,2384.2,4.19425]
[1730770526874,0.09876121,2384.5,2384.4,4.19392]
[1730770527081,0.64876121,2384.5,2384.2,4.19416]
[1730770527415,0.64876121,2384.5,2384.3,4.19406]
[1730770528473,0.64876121,2384.5,2384.2,4.19416]
[1730770528878,0.09876121,2384.5,2384.3,4.27787207]
[1730770529087,0.09876121,2384.5,2384.4,8.94301595]
[1730770529284,0.8109,2385.2,2384.9,4.19301]
[1730770529683,0.8109,2385.2,2384.7,4.19331]
[1730770529883,0.8109,2385.2,2384.5,4.19363]
[1730770530122,5.00352,2385.2,2384.6,4.19342]
[1730770530424,0.55,2385.0,2384.6,4.19342]
[1730770530625,0.55,2385.0,2384.5,4.19363]
[1730770530829,0.55,2385.0,2384.5,8.38728]
[1730770531321,0.55,2385.0,2384.5,4.19363]
[1730770531529,0.55,2385.0,2384.7,4.19337]
[1730770531823,0.55,2385.0,2384.4,0.84807005]
[1730770531824,3.8133,2385.5,2384.9,4.94672]
[1730770532029,3.8133,2385.5,2385.1,4.19264]
[1730770532319,3.0,2385.4,2384.9,0.7538]
[1730770532627,5.0053,2385.5,2385.1,4.19256]
[1730770532628,3.8133,2385.5,2385.1,4.19256]
[1730770533219,0.7527,2385.7,2385.2,4.19252]
[1730770533426,0.25360097,2385.6,2385.2,4.19252]
[1730770534122,0.25360097,2385.6,2385.4,4.19207]
[1730770534321,0.10470765,2385.8,2385.4,8.38413]
[1730770534691,0.10470765,2385.8,2385.4,4.99486]
[1730770535093,0.10470765,2385.8,2385.5,4.19184]
[1730770536222,0.10470765,2385.8,2385.1,0.7652]
[1730770536223,4.19201,2385.5,2385.1,0.7652]
[1730770536430,4.19201,2385.5,2384.8,0.28168309]
[1730770536431,0.55,2385.3,2384.8,0.28168309]
[1730770536590,0.55,2385.1,2384.7,4.96236]
[1730770536788,0.813,2385.0,2384.5,4.19361]
[1730770537090,0.55,2384.9,2384.5,4.19361]
[1730770537322,1.824869,2384.9,2384.5,4.19361]
[1730770538418,1.824869,2384.9,2384.5,8.38726]
[1730770538620,0.1789202,2384.8,2384.6,0.08386995]
[1730770538822,4.19307,2384.9,2384.4,4.19375]
[1730770539030,4.19307,2384.9,2384.1,3.90102276]
[1730770539031,8.56132,2384.8,2384.2,4.1941]
[1730770539222,0.55,2384.6,2384.2,4.1941]
[1730770539934,0.1789202,2384.5,2384.2,4.1941]
[1730770540098,0.1789202,2384.5,2384.1,0.7655]
[1730770540321,0.1789202,2384.5,2384.1,0.28228805]
[1730770540322,0.55,2384.4,2384.1,0.28228805]
[1730770540540,0.67115722,2384.5,2384.0,0.28241985]
[1730770540812,3.0,2384.6,2384.3,8.3881]
[1730770540813,0.55,2384.6,2384.3,8.3881]
[1730770541030,0.55,2384.7,2384.3,8.388]
[1730770541410,0.55,2384.7,2384.3,4.194]
[1730770541855,0.818,2384.8,2384.2,0.7648]
[1730770542031,0.818,2384.8,2384.3,0.2824326]
[1730770542214,2.038399,2384.8,2384.2,0.7648]
[1730770542537,2.038399,2384.8,2384.3,0.28243419]
[1730770542696,0.7721,2384.9,2384.4,0.28245515]
[1730770542895,0.7721,2384.9,2384.2,0.7648]
[1730770542896,4.1934,2384.7,2384.2,4.95904]
[1730770543350,4.19365,2384.6,2384.3,0.28247913]
[1730770543494,0.7999,2384.4,2384.0,0.45202795]
[1730770543694,0.7999,2384.4,2384.0,0.28253518]
[1730770543936,0.7999,2384.4,2384.2,4.19424]
[1730770544180,3.838705,2384.5,2384.2,4.19424]
[1730770545080,3.7999,2384.7,2384.2,4.19417]
[1730770545264,3.0,2384.9,2384.4,4.19389]
[1730770545465,3.0,2384.9,2384.5,0.28259128]
[1730770545651,3.0,2384.9,2384.5,4.19363]
[1730770545867,3.0,2384.9,2384.4,4.19378]
[1730770546173,0.8095,2385.0,2384.6,4.19342]
[1730770546586,0.55,2384.9,2384.7,0.28280702]
[1730770546752,0.55,2384.9,2384.6,4.19342]
[1730770546956,0.55,2384.9,2384.7,0.28280397]
[1730770547146,1.105237,2384.9,2384.5,4.96672]
[1730770547356,0.55,2384.9,2384.6,0.2828114]
[1730770547681,0.55,2384.9,2384.7,0.2828114]
[1730770547982,0.55,2384.9,2384.5,4.96672]
[1730770548140,0.55,2384.9,2384.6,0.28289312]
[1730770548480,0.55,2384.9,2384.6,4.19355]
[1730770548780,0.55,2384.9,2384.7,0.28296885]
[1730770548981,0.55,2384.9,2384.6,4.64630636]
[1730770549184,7.7427,2385.1,2384.7,0.28296782]
[1730770549354,0.55,2384.9,2384.8,0.28302354]
[1730770549768,0.55,2384.9,2384.6,0.45284875]
[1730770549973,0.55,2384.9,2384.7,0.28302468]
[1730770550193,0.55,2384.9,2384.6,0.45284875]
[1730770550354,0.55,2384.9,2384.7,0.28302109]
[1730770550680,0.55,2384.9,2384.8,0.28302109]
[1730770550885,1.678761,2385.3,2384.8,4.47615109]